bitfinex/quotes_SOLUSD_20250201
["timestamp","ask_amount","ask_price","bid_price","bid_amount"]
[1738441581422,1.0,217.89,217.82,22.30608726]
[1738441581713,1.0,217.93,217.86,22.30608726]
[1738441581912,1.0,217.95,217.86,22.30608726]
[1738441582097,1.0,217.98,217.9,22.30608726]
[1738441582493,1.0,217.98,217.83,13.41184853]
[1738441582494,1.0,218.02,217.94,22.30608726]
[1738441583004,2.0,217.98,217.89,22.30608726]
[1738441583403,1.0,218.01,217.91,22.30608726]
[1738441583611,1.0,218.02,217.93,22.30608726]
[1738441584121,1.063,218.03,217.93,22.30608726]
[1738441584697,1.0,218.02,217.93,22.30608726]
[1738441585407,1.063,218.03,217.94,13.41184853]
[1738441585615,1.063,218.03,217.98,22.30608726]
[1738441586610,0.063,218.03,217.98,22.30608726]
[1738441586919,0.063,218.03,217.97,22.30608726]
[1738441587216,0.063,218.03,217.94,22.30608726]
[1738441587392,1.0,218.02,217.92,22.30608726]
[1738441587598,1.0,218.0,217.9,22.30608726]
[1738441587797,1.0,218.02,217.91,13.41184853]
[1738441588008,1.0,218.0,217.91,13.41184853]
[1738441588398,1.0,218.0,217.92,13.41184853]
[1738441588801,2.0,218.0,217.91,22.30608726]
[1738441589001,1.0,217.95,217.84,7.1574]
[1738441589203,1.0,217.93,217.84,7.1574]
[1738441589523,2.0,217.93,217.84,7.1574]
[1738441590022,1.0,217.91,217.84,7.1574]
[1738441592219,1.0,217.93,217.84,7.1574]
[1738441592728,1.0,217.93,217.82,2.0]
[1738441592729,1.0,217.88,217.82,2.0]
[1738441592894,1.0,217.92,217.82,2.0]
[1738441594497,1.0,217.92,217.83,35.71793579]
[1738441594705,1.0,217.92,217.83,13.41184853]
[1738441594903,1.0,217.89,217.82,2.0]
[1738441595109,1.0,217.87,217.82,2.0]
[1738441596425,1.0,217.83,217.82,2.0]
[1738441601131,1.0,217.83,217.82,2.03]
[1738441603529,1.0,217.85,217.82,2.03]
[1738441603717,1.0,217.9,217.82,2.03]
[1738441603913,1.0,217.92,217.83,22.30608726]
[1738441604231,0.063,217.93,217.86,22.30608726]
[1738441604606,0.063,217.93,217.88,22.30608726]
[1738441605026,0.063,217.93,217.89,13.41184853]
[1738441605710,5.48551192,218.04,217.89,13.41184853]
[1738441606031,5.48551192,218.04,217.85,22.30608726]
[1738441606424,9.93435572,218.04,217.85,22.30608726]
[1738441606931,9.93435572,218.04,217.86,13.41184853]
[1738441607423,9.93435572,218.04,217.82,3.8958]
[1738441607424,20.0,218.01,217.82,2.03]
[1738441607632,0.86037697,218.0,217.82,2.03]
[1738441608618,20.0,217.96,217.82,2.03]
[1738441608817,20.0,217.91,217.68,0.03]
[1738441609026,20.0,217.87,217.68,0.03]
[1738441609212,0.86087757,217.86,217.68,0.03]
[1738441609418,2.00996083,217.86,217.68,0.03]
[1738441609619,0.86087757,217.86,217.68,0.03]
[1738441610421,20.0,217.83,217.68,0.03]
[1738441610623,0.86097484,217.82,217.68,0.03]
[1738441611622,0.86098278,217.85,217.68,0.03]
[1738441611822,0.86098278,217.85,217.68,13.44184853]
[1738441612028,23.46,217.86,217.68,13.44184853]
[1738441613218,0.86078807,217.85,217.68,13.44184853]
[1738441614230,0.86078807,217.85,217.68,14.57741286]
[1738441614414,20.86079542,217.86,217.68,14.57741286]
[1738441614620,20.0,217.86,217.68,14.57741286]
[1738441615019,1.0,217.98,217.75,22.30608726]
[1738441615217,4.4488438,217.92,217.77,22.30608726]
[1738441615645,20.0,217.91,217.76,13.41184853]
[1738441615856,4.4488438,217.92,217.77,22.30608726]
[1738441616217,20.0,217.91,217.76,35.71793579]
[1738441616439,4.4488438,217.92,217.76,35.71793579]
[1738441617137,20.0,217.91,217.76,13.41184853]
[1738441617336,20.0,217.89,217.71,22.30608726]
[1738441617537,0.86072264,217.88,217.71,22.30608726]
[1738441617922,20.0,217.88,217.72,22.30608726]
[1738441618123,20.0,217.88,217.73,13.41184853]
[1738441619437,0.86072037,217.9,217.73,22.30608726]
[1738441619634,20.0,217.88,217.74,22.30608726]
[1738441619834,20.0,217.88,217.73,22.30608726]
[1738441620629,20.0,217.88,217.71,22.30608726]
[1738441620834,20.0,217.88,217.72,13.41184853]
[1738441621338,20.0,217.88,217.73,22.30608726]
[1738441621519,20.0,217.9,217.75,22.30608726]
[1738441621720,20.0,217.88,217.75,22.30608726]
[1738441622421,0.86060052,217.87,217.7,22.30608726]
[1738441622851,0.86069966,217.9,217.71,13.41184853]
[1738441623443,20.86069966,217.9,217.71,13.41184853]
[1738441623650,25.30954346,217.9,217.73,13.41184853]
[1738441624260,5.30954346,217.9,217.74,22.30608726]
[1738441624428,9.2839,217.95,217.82,22.30608726]
[1738441624635,9.2839,217.95,217.8,22.30608726]
[1738441624823,20.0,217.92,217.8,13.41184853]
[1738441625022,10.14429217,217.95,217.8,13.41184853]
[1738441626049,10.14429217,217.95,217.79,13.41184853]
[1738441626634,0.063,217.87,217.78,22.30608726]
[1738441626830,0.063,217.87,217.79,13.41184853]
[1738441627238,0.063,217.87,217.78,13.41184853]
[1738441629171,0.063,217.87,217.81,22.30608726]
[1738441629364,0.063,217.87,217.83,22.30608726]
[1738441629521,0.063,217.87,217.85,22.30608726]
[1738441629728,0.063,217.87,217.86,35.71793579]
[1738441629939,0.063,217.87,217.86,58.02743579]
[1738441630144,1.9492,218.03,217.95,22.30608726]
[1738441630343,1.9492,218.03,217.95,13.41184853]
[1738441630830,8.0292,218.08,217.95,13.41184853]
[1738441631551,8.0292,218.08,217.96,35.71793579]
[1738441631753,1.9492,218.09,217.99,22.30608726]
[1738441631933,1.9492,218.09,218.0,13.41184853]
[1738441632251,8.0922,218.13,217.98,22.30608726]
[1738441632453,8.0922,218.13,217.99,22.30608726]
[1738441632629,8.0922,218.13,218.0,35.71793579]
[1738441632828,0.063,218.13,218.03,13.41184853]
[1738441633034,0.063,218.13,218.03,35.71793579]
[1738441633269,0.063,218.13,218.01,29.84558726]
[1738441633470,0.063,218.13,218.03,22.30608726]
[1738441633746,0.063,218.13,218.03,35.71793579]
[1738441634342,0.063,218.13,218.03,13.41184853]
[1738441634848,0.063,218.13,218.03,35.71793579]
[1738441635170,0.063,218.13,218.11,22.30608726]
[1738441635460,0.063,218.13,218.1,35.71793579]
[1738441635966,0.063,218.13,218.12,22.30608726]
[1738441636132,0.063,218.13,218.12,35.71793579]
[1738441636753,0.063,218.13,218.12,36.71793579]
[1738441637559,0.063,218.15,218.14,15.41184853]
[1738441637751,0.063,218.15,218.14,45.42953579]
[1738441638081,0.063,218.15,218.14,44.42953579]
[1738441638253,0.063,218.15,218.14,45.42953579]
[1738441638451,0.063,218.25,218.16,1.0]
[1738441638662,0.063,218.25,218.18,22.30608726]
[1738441638862,0.063,218.25,218.19,22.30608726]
[1738441639153,0.063,218.25,218.23,22.30608726]
[1738441639372,0.063,218.25,218.23,37.71793579]
[1738441639545,0.063,218.25,218.23,37.96891579]
[1738441640373,0.063,218.25,218.23,37.71793579]
[1738441640535,1.458,218.44,218.25,22.30608726]
[1738441640743,0.85846907,218.43,218.25,22.30608726]
[1738441640943,1.458,218.44,218.27,22.30608726]
[1738441641138,0.85843226,218.43,218.22,22.30608726]
[1738441641355,20.0,218.42,218.19,1.833534]
[1738441641543,0.85870595,218.41,218.22,35.71793579]
[1738441641755,20.0,218.42,218.24,22.30608726]
[1738441642070,0.85857448,218.41,218.23,22.30608726]
[1738441642437,20.0,218.42,218.26,13.41184853]
[1738441642679,20.0,218.42,218.28,13.41184853]
[1738441643180,20.0,218.42,218.27,13.41184853]
[1738441643683,1.458,218.44,218.29,13.41184853]
[1738441644172,20.0,218.42,218.29,13.41184853]
[1738441644677,1.458,218.44,218.33,35.71793579]
[1738441644855,0.063,218.46,218.37,13.41184853]
[1738441645064,0.063,218.46,218.32,22.30608726]
[1738441645282,0.063,218.46,218.33,13.41184853]
[1738441646390,0.92121729,218.46,218.22,33.47818726]
[1738441646602,0.92121729,218.46,218.23,22.30608726]
[1738441646763,0.063,218.46,218.29,22.30608726]
[1738441647082,0.063,218.46,218.35,13.41184853]
[1738441647256,0.063,218.46,218.31,22.30608726]
[1738441647453,0.063,218.46,218.28,1.0]
[1738441647454,0.063,218.46,218.3,22.30608726]
[1738441647777,0.063,218.46,218.31,13.41184853]
[1738441649291,0.063,218.46,218.31,35.71793579]
[1738441649469,0.063,218.46,218.31,22.30608726]
[1738441649798,0.063,218.46,218.3,22.30608726]
[1738441650461,0.92131978,218.46,218.29,22.30608726]
[1738441650660,0.92131978,218.46,218.23,22.30608726]
[1738441650861,20.88522261,218.46,218.23,22.30608726]
[1738441651070,20.88522261,218.46,218.24,13.41184853]
[1738441651270,20.88522261,218.46,218.26,35.71793579]
[1738441651872,20.02690283,218.46,218.3,13.41184853]
[1738441652176,20.02690283,218.46,218.28,22.30608726]
[1738441652378,0.8583926,218.45,218.24,22.30608726]
[1738441652585,0.8583926,218.45,218.27,13.41184853]
[1738441653093,0.8583926,218.45,218.25,22.30608726]
[1738441653586,1.8505,218.44,218.24,22.30608726]
[1738441653788,20.0,218.41,218.24,22.30608726]
[1738441653983,20.0,218.41,218.3,13.41184853]
[1738441654465,20.0,218.41,218.27,22.30608726]
[1738441654673,20.0,218.41,218.25,22.30608726]
[1738441654872,20.0,218.41,218.27,13.41184853]
[1738441656205,9.1796,218.44,218.27,13.41184853]
[1738441656486,20.0,218.41,218.27,13.41184853]
[1738441657474,20.0,218.36,218.16,22.30608726]
[1738441657670,20.0,218.31,218.13,0.03]
[1738441657878,0.85902185,218.3,218.13,0.03]
[1738441658396,1.8505,218.29,218.13,0.03]
[1738441658575,0.85922211,218.28,218.13,0.03]
[1738441659394,20.0,218.24,218.13,0.03]
[1738441659604,0.85935738,218.23,218.13,0.03]
[1738441659906,20.0,218.2,218.13,0.03]
[1738441660199,0.85957322,218.19,218.13,0.03]
[1738441660869,0.85957322,218.19,218.01,54.44]
[1738441661069,0.85957322,218.19,218.02,13.41184853]
[1738441661292,0.85957322,218.19,217.94,7.7121]
[1738441661293,20.0,218.15,217.96,22.30608726]
[1738441661492,0.85971128,218.14,217.95,22.30608726]
[1738441661675,0.85971128,218.14,217.96,13.41184853]
[1738441661876,0.85971128,218.14,217.95,36.14789581]
[1738441662376,0.85971128,218.14,217.96,13.41184853]
[1738441663376,0.85971128,218.14,217.98,13.41184853]
[1738441663980,0.85971128,218.14,217.96,36.14789581]
[1738441664177,0.85971128,218.14,217.95,36.14789581]
[1738441664375,0.85971128,218.14,217.96,49.55974434]
[1738441666175,0.85971128,218.14,217.92,36.14789581]
[1738441666375,1.9705,218.09,217.92,36.14789581]
[1738441666576,0.85995332,218.08,217.92,36.14789581]
[1738441666898,0.85995332,218.08,217.93,13.41184853]
[1738441667596,20.0,218.04,217.91,0.03]
[1738441667804,0.8600631,218.03,217.91,0.03]
[1738441667974,20.0,218.04,217.91,0.03]
[1738441668678,0.86007769,218.03,217.91,0.03]
[1738441669287,20.86007769,218.03,217.91,0.03]
[1738441671300,20.0,218.03,217.91,0.03]
[1738441672000,0.86012566,218.02,217.91,0.03]
[1738441672389,20.0,218.03,217.91,0.03]
[1738441672684,0.8600424,218.02,217.91,0.03]
[1738441673679,2.02798144,218.02,217.91,0.03]
[1738441673881,0.8600424,218.02,217.91,0.03]
[1738441674282,2.83081572,218.01,217.91,0.03]
[1738441676403,1.9705,218.01,217.91,0.03]
[1738441676602,1.9705,218.01,217.92,36.14789581]
[1738441676983,1.9705,218.01,217.91,36.17789581]
[1738441677903,1.9705,218.01,217.91,0.03]
[1738441678099,0.86011298,218.0,217.91,0.03]
[1738441680290,20.0,217.96,217.75,36.14789581]
[1738441680507,0.86059761,217.95,217.74,36.14789581]
[1738441680806,24.32059761,217.95,217.77,49.55974434]
[1738441681308,24.32059761,217.95,217.73,7.4663]
[1738441681309,4.32059761,217.95,217.8,13.41184853]
[1738441681907,3.46,217.95,217.82,22.27643156]
[1738441682107,0.86040044,217.94,217.8,22.27643156]
[1738441682306,0.86040044,217.94,217.8,13.41184853]
[1738441682603,0.86040044,217.94,217.77,22.27643156]
[1738441682782,20.0,217.84,217.72,0.03]
[1738441682986,9.4563,217.87,217.72,0.03]
[1738441682987,4.32104626,217.83,217.72,0.03]
[1738441684382,3.46,217.83,217.74,13.41184853]
[1738441684580,9.4563,217.87,217.77,22.27643156]
[1738441684788,9.4563,217.87,217.78,22.27643156]
[1738441684983,9.4563,217.87,217.74,22.27643156]
[1738441685197,0.86074972,217.86,217.74,22.27643156]
[1738441685406,9.4563,217.87,217.73,22.27643156]
[1738441685813,9.4563,217.87,217.72,22.30643156]
[1738441685988,9.4563,217.87,217.74,22.27643156]
[1738441686386,9.4563,217.87,217.8,0.03]
[1738441687011,0.86074287,217.86,217.8,0.03]
[1738441687308,9.4563,217.87,217.8,0.03]
[1738441691305,1.8618,217.87,217.8,0.03]
[1738441691500,9.925,217.93,217.8,13.44184853]
[1738441691709,9.925,217.93,217.8,0.03]
[1738441692017,0.86046789,217.92,217.8,0.03]
[1738441692597,9.925,217.93,217.8,0.03]
[1738441693418,20.0,217.9,217.8,0.03]
[1738441694103,0.86063348,217.89,217.8,0.03]
[1738441697215,0.86063348,217.89,217.72,0.03]
[1738441697423,20.0,217.85,217.72,0.03]
[1738441697592,0.86101912,217.84,217.72,0.03]
[1738441699827,3.46,217.83,217.72,0.03]
[1738441700049,20.0,217.81,217.72,0.03]
[1738441700316,0.86105487,217.8,217.72,0.03]
[1738441701402,0.86110614,217.82,217.72,0.03]
[1738441701900,20.0,217.84,217.72,0.03]
[1738441702116,0.86088931,217.83,217.69,0.02390282]
[1738441703330,9.925,217.88,217.69,0.02390282]
[1738441703331,0.8609581,217.84,217.69,0.02390282]
[1738441703495,0.86085595,217.85,217.69,0.02390282]
[1738441703932,20.0,217.84,217.69,0.02390282]
[1738441704222,3.46,217.86,217.69,0.02390282]
[1738441704412,20.86079508,217.85,217.69,0.02390282]
[1738441704998,20.0,217.85,217.69,0.02390282]
[1738441705631,0.3,217.8,217.69,0.02390282]
[1738441707224,9.5802,217.79,217.69,0.02390282]
[1738441707426,20.0,217.76,217.69,0.02390282]
[1738441707722,0.86119819,217.75,217.69,0.02390282]
[1738441708123,2.03858962,217.75,217.69,0.02390282]
[1738441708303,0.86119819,217.75,217.68,0.03]
[1738441708503,20.0,217.72,217.68,0.03]
[1738441708706,0.86135712,217.71,217.68,0.03]
[1738441709221,0.861362,217.74,217.68,0.03]
[1738441709550,10.4413873,217.79,217.68,0.03]
[1738441709828,9.5802,217.79,217.68,0.03]
[1738441711821,2.011,217.79,217.68,13.44184853]
[1738441712020,0.3,217.8,217.68,13.44184853]
[1738441713034,0.3,217.8,217.68,0.03]
[1738441714809,0.86097151,217.79,217.68,0.03]
[1738441715013,20.0,217.75,217.68,0.03]
[1738441715214,0.86127217,217.74,217.68,0.03]
[1738441716041,20.0,217.75,217.68,0.03]
[1738441720146,20.0,217.75,217.58,12.94184853]
[1738441720538,0.86121433,217.74,217.58,12.94184853]
[1738441720725,7.2804,217.73,217.56,7.70999536]
[1738441720927,0.86134044,217.72,217.56,7.70999536]
[1738441721345,7.2804,217.73,217.56,7.70999536]
[1738441721643,7.2804,217.73,217.5,0.15549]
[1738441721644,1.9369,217.69,217.58,0.03]
[1738441721824,2.79833449,217.69,217.58,0.03]
[1738441723128,1.9369,217.69,217.58,0.03]
[1738441723329,1.9369,217.69,217.59,35.68828009]
[1738441723646,7.2804,217.73,217.6,35.68828009]
[1738441724232,7.2804,217.73,217.61,35.68828009]
[1738441724949,7.2804,217.73,217.61,13.41184853]
[1738441725648,7.2804,217.73,217.58,13.44184853]
[1738441726148,7.2804,217.73,217.6,13.41184853]
[1738441726354,7.2804,217.73,217.62,13.41184853]
[1738441726943,1.9369,217.75,217.64,13.41184853]
[1738441728650,1.9369,217.75,217.63,22.27643156]
[1738441728651,7.9805,217.78,217.66,13.41184853]
[1738441728823,7.9805,217.78,217.68,13.41184853]
[1738441729028,2.2999,217.8,217.7,13.41184853]
[1738441730365,2.2999,217.8,217.69,13.41184853]
[1738441731458,0.86085991,217.79,217.61,22.27643156]
[1738441731636,22.2999,217.8,217.61,22.27643156]
[1738441731953,0.86094541,217.79,217.61,22.27643156]
[1738441732148,0.86094541,217.79,217.62,13.41184853]
[1738441736031,0.86094541,217.79,217.64,13.41184853]
[1738441736232,0.86094541,217.79,217.58,0.03]
[1738441736446,0.86094541,217.79,217.58,22.30643156]
[1738441736646,0.86094541,217.79,217.59,13.41184853]
[1738441736934,0.86094541,217.79,217.6,22.27643156]
[1738441737130,0.86094541,217.79,217.61,13.41184853]
[1738441738457,1.15596991,217.79,217.61,13.41184853]
[1738441739762,1.15596991,217.79,217.61,22.27643156]
[1738441740063,1.15596991,217.79,217.62,13.41184853]
[1738441740360,1.15596991,217.79,217.62,35.68828009]
[1738441740661,20.0,217.78,217.6,22.27643156]
[1738441740858,9.1656,217.76,217.6,22.27643156]
[1738441741264,0.8611705,217.75,217.61,13.41184853]
[1738441742362,9.1656,217.76,217.62,22.27643156]
[1738441742657,9.1656,217.76,217.63,13.41184853]
[1738441742860,1.8366,217.76,217.69,13.41184853]
[1738441743749,1.8366,217.76,217.7,13.41184853]
[1738441744161,0.363,217.8,217.7,35.68828009]
[1738441744465,0.363,217.8,217.71,35.68828009]
[1738441745165,7.09603093,217.81,217.71,35.68828009]
[1738441745733,7.09603093,217.81,217.71,13.41184853]
[1738441746178,0.063,217.76,217.71,13.41184853]
[1738441747267,0.063,217.76,217.72,13.41184853]
[1738441747639,0.063,217.76,217.68,22.27643156]
[1738441747839,0.063,217.76,217.67,22.27643156]
[1738441748059,0.063,217.76,217.65,22.27643156]
[1738441748240,0.063,217.76,217.66,13.41184853]
[1738441748440,0.063,217.76,217.67,22.27643156]
[1738441749365,0.063,217.76,217.64,22.27643156]
[1738441749659,1.9326,217.75,217.58,22.30643156]
[1738441749868,1.9326,217.75,217.61,13.41184853]
[1738441750039,1.9326,217.75,217.6,22.27643156]
[1738441750241,0.86119615,217.74,217.61,13.41184853]
[1738441751075,0.86119615,217.74,217.58,0.03]
[1738441751294,7.4968,217.73,217.58,0.03]
[1738441751484,0.86134222,217.72,217.58,0.03]
[1738441752639,20.0,217.7,217.58,0.03]
[1738441752843,1.9326,217.68,217.58,0.03]
[1738441753052,0.86155131,217.67,217.58,0.03]
[1738441755369,7.4968,217.66,217.58,0.03]
[1738441756150,0.86149695,217.65,217.58,0.03]
[1738441757083,7.4968,217.66,217.58,0.03]
[1738441761857,20.0,217.63,217.58,0.03]
[1738441762062,0.86145086,217.65,217.58,0.03]
[1738441762063,0.8616276,217.65,217.58,0.03]
[1738441762263,7.4968,217.66,217.58,0.03]
[1738441763565,0.8615301,217.65,217.58,0.03]
[1738441764077,1.9326,217.68,217.58,13.44184853]
[1738441764386,1.9326,217.68,217.6,13.41184853]
[1738441764582,1.9326,217.68,217.61,13.95430552]
[1738441764898,7.6362,217.72,217.64,27.36615405]
[1738441765263,7.6362,217.72,217.64,13.41184853]
[1738441765689,7.6362,217.72,217.64,22.3076348]
[1738441765995,7.6362,217.72,217.58,22.3376348]
[1738441766693,7.6362,217.72,217.59,13.41184853]
[1738441769180,0.86126981,217.71,217.58,0.03]
[1738441769382,20.0,217.69,217.58,0.03]
[1738441769576,1.9849,217.67,217.58,0.03]
[1738441769888,0.86160818,217.66,217.58,0.03]
[1738441770400,7.2878,217.65,217.58,0.03]
[1738441770883,0.86154513,217.64,217.58,0.03]
[1738441773667,7.2878,217.65,217.58,0.03]
[1738441775696,0.86162738,217.64,217.58,0.03]
[1738441777297,7.2878,217.65,217.58,0.03]
[1738441781895,1.9849,217.67,217.6,22.3076348]
[1738441782106,1.9849,217.67,217.61,22.3076348]
[1738441782271,1.9849,217.67,217.59,13.41184853]
[1738441782272,1.9778,217.72,217.63,22.3076348]
[1738441782582,1.9778,217.72,217.65,22.3076348]
[1738441783109,7.4376,217.75,217.67,22.3076348]
[1738441783289,0.063,217.76,217.67,22.3076348]
[1738441784377,0.063,217.76,217.67,13.41184853]
[1738441785108,0.063,217.76,217.67,22.3076348]
[1738441785405,0.063,217.76,217.67,13.41184853]
[1738441785912,0.063,217.76,217.68,22.3076348]
[1738441786220,0.063,217.76,217.67,22.3076348]
[1738441787797,0.063,217.76,217.67,13.93952231]
[1738441788500,0.063,217.76,217.68,13.41184853]
[1738441788702,0.063,217.76,217.69,13.93952231]
[1738441788907,0.063,217.76,217.68,13.93952231]
[1738441789128,7.4376,217.8,217.68,13.93952231]
[1738441789129,20.0,217.87,217.69,0.6887741]
[1738441789488,0.6786826,217.86,217.69,0.6887741]
[1738441789698,0.6786826,217.86,217.7,13.93952231]
[1738441789985,0.6786826,217.86,217.71,0.68874525]
[1738441790409,0.6786826,217.87,217.71,0.68874525]
[1738441790914,0.6786826,217.87,217.72,27.35137084]
[1738441791214,0.6786826,217.87,217.71,0.68874525]
[1738441791215,0.6786826,217.88,217.73,0.68862378]
[1738441791516,20.6786826,217.88,217.73,0.68862378]
[1738441792087,9.4154,217.87,217.73,0.68862378]
[1738441792320,0.6786826,217.86,217.74,0.68870883]
[1738441792527,0.6786826,217.86,217.71,0.68872196]
[1738441793733,0.6786826,217.86,217.72,0.68880337]
[1738441793888,0.6786826,217.86,217.68,13.41184853]
[1738441794087,0.6786826,217.86,217.69,0.68880258]
[1738441795614,0.6786826,217.86,217.7,27.35137084]
[1738441795787,0.6786826,217.86,217.72,13.41184853]
[1738441796107,0.6786826,217.86,217.73,0.6886815]
[1738441796693,0.6786826,217.86,217.74,13.41184853]
[1738441797002,0.6786826,217.86,217.75,0.68859037]
[1738441797802,0.6786826,217.86,217.7,0.68869195]
[1738441798198,0.6786826,217.86,217.71,13.41184853]
[1738441798398,0.6786826,217.86,217.72,0.68869031]
[1738441798722,20.0,217.86,217.72,0.68869031]
[1738441798904,0.6786826,217.85,217.72,0.68869031]
[1738441801114,0.6786826,217.85,217.69,0.68880381]
[1738441801716,0.7416826,217.88,217.77,13.93952231]
[1738441801891,0.063,217.88,217.8,13.93952231]
[1738441802091,0.063,217.88,217.81,0.68844244]
[1738441802721,0.2416826,217.92,217.77,0.68857424]
[1738441802898,2.637083,217.87,217.72,0.6887159]
[1738441803092,0.2416826,217.86,217.72,0.6887159]
[1738441804311,0.2416826,217.86,217.73,13.41184853]
[1738441804495,0.2416826,217.86,217.74,0.68860649]
[1738441804693,0.063,217.88,217.75,13.41184853]
[1738441804903,2.700083,217.88,217.76,0.68857189]
[1738441805109,0.2416826,217.87,217.76,0.68857189]
[1738441805413,0.063,217.88,217.76,0.68857189]
[1738441805615,20.0,217.87,217.76,0.68857189]
[1738441806919,20.2416826,217.86,217.76,0.68857189]
[1738441807119,20.2416826,217.86,217.72,0.68873418]
[1738441807420,20.2416826,217.86,217.73,27.35137084]
[1738441807589,20.2416826,217.86,217.74,0.68858958]
[1738441807795,20.0,217.87,217.75,13.41184853]
[1738441807994,20.0,217.87,217.76,0.68853964]
[1738441808301,0.3046826,217.88,217.76,0.68853964]
[1738441808302,0.3046826,217.88,217.76,14.62806195]
[1738441808497,0.063,217.88,217.81,27.35137084]
[1738441808704,0.063,217.88,217.85,13.93952231]
[1738441808912,0.063,217.88,217.86,0.68830919]
[1738441810822,0.063,217.88,217.81,0.68838939]
[1738441811006,0.063,217.88,217.79,0.68857936]
[1738441813835,0.063,217.88,217.8,35.69714258]
[1738441814012,0.063,217.88,217.81,0.68838382]
[1738441815503,0.063,217.88,217.79,0.6885428]
[1738441815823,0.063,217.88,217.8,0.68852917]
[1738441817650,20.0,217.87,217.78,0.68854148]
[1738441817853,20.2416826,217.87,217.79,0.68866548]
[1738441818052,20.0,217.87,217.77,0.03]
[1738441818235,0.063,217.88,217.77,22.31529405]
[1738441818431,0.063,217.88,217.78,0.68848883]
[1738441818639,0.063,217.88,217.79,13.41184853]
[1738441818834,0.063,217.88,217.82,22.28529405]
[1738441819146,0.063,217.88,217.84,22.28529405]
[1738441819349,0.063,217.88,217.85,0.68828297]
[1738441820527,0.063,217.88,217.79,0.68844686]
[1738441820933,0.063,217.88,217.8,13.41184853]
[1738441821133,0.063,217.88,217.81,0.68842159]
[1738441821528,0.063,217.88,217.82,13.41184853]
[1738441821740,0.063,217.88,217.87,24.29609405]
[1738441821937,0.063,217.88,217.87,46.10747094]
[1738441822151,0.063,217.92,217.88,13.41184853]
[1738441822337,0.063,217.92,217.91,35.69714258]
[1738441822533,0.063,217.92,217.91,36.38512562]
[1738441823146,0.063,217.92,217.91,14.09983157]
[1738441823345,0.063,217.92,217.91,0.68798304]
[1738441823547,0.063,217.92,217.88,0.6882116]
[1738441823928,0.063,217.92,217.88,14.10006013]
[1738441824126,0.063,217.92,217.89,13.41184853]
[1738441824352,0.063,217.92,217.9,0.68822927]
[1738441824528,0.063,217.92,217.88,0.68823555]
[1738441824731,0.063,217.92,217.83,0.68833632]
[1738441825256,0.063,217.92,217.84,13.41184853]
[1738441825553,0.063,217.92,217.85,0.68830768]
[1738441825745,0.063,217.92,217.86,13.41184853]
[1738441825946,0.063,217.92,217.87,0.68824972]
[1738441826131,0.063,217.92,217.83,0.68836754]
[1738441826431,0.063,217.92,217.84,13.41184853]
[1738441826636,0.063,217.92,217.85,0.68837824]
[1738441827435,0.063,217.92,217.86,13.41184853]
[1738441827745,0.063,217.92,217.88,13.41184853]
[1738441827954,0.063,217.92,217.89,0.68820026]
[1738441828649,0.063,217.92,217.86,0.68822053]
[1738441828863,0.063,217.92,217.83,0.68841191]
[1738441829044,0.2416826,217.91,217.83,0.68841191]
[1738441829356,0.2416826,217.91,217.79,13.41184853]
[1738441829659,1.9574,217.9,217.8,0.68846897]
[1738441829853,20.0,217.86,217.77,0.03]
[1738441830153,0.2416826,217.85,217.8,0.03]
[1738441830530,0.2416826,217.88,217.8,0.03]
[1738441830731,0.063,217.92,217.8,0.03]
[1738441830732,0.063,217.92,217.8,22.31529405]
[1738441830927,0.063,217.92,217.82,22.28529405]
[1738441831234,0.063,217.92,217.86,13.41184853]
[1738441831426,0.063,217.92,217.87,0.68828634]
[1738441831959,0.063,217.92,217.88,13.41184853]
[1738441832142,0.063,217.92,217.89,0.68820383]
[1738441832551,0.063,217.92,217.9,13.41184853]